fUSD/lending_fUSD_20241207
["ID","MTS","AMOUNT","RATE_DAILY","PERIOD"]
[344611252,1733611839864,-500.0,0.00019799,2]
[344611253,1733611839874,-509.57,0.00019799,2]
[344611255,1733611839884,-500.0,0.00019799,2]
[344611256,1733611839893,-500.0,0.00019799,2]
[344611257,1733611839903,-615.43224615,0.00019799,2]
[344611258,1733611839915,-148.57775385,0.00019799,2]
[344611259,1733611839926,-500.0,0.00019799,2]
[344611260,1733611839936,-500.0,0.00019799,2]
[344611261,1733611839946,-500.0,0.00019799,2]
[344611262,1733611839956,-500.0,0.00019799,2]
[344611263,1733611839965,-500.0,0.00019799,2]
[344611264,1733611839975,-500.0,0.00019799,2]
[344611265,1733611839984,-500.0,0.00019799,2]
[344611266,1733611839994,-500.0,0.00019799,2]
[344611267,1733611840003,-534.13,0.00019799,2]
[344611268,1733611840014,-595.9,0.00019799,2]
[344611269,1733611840023,-500.0,0.00019799,2]
[344611270,1733611840033,-500.0,0.00019799,2]
[344611271,1733611840043,-509.76,0.00019799,2]
[344611272,1733611840052,-500.0,0.00019799,2]
[344611273,1733611840062,-500.0,0.00019799,2]
[344611274,1733611840072,-500.0,0.00019799,2]
[344611275,1733611840081,-761.84,0.00019799,2]
[344611276,1733611840091,-500.0,0.00019799,2]
[344611277,1733611840100,-643.92,0.00019799,2]
[344611278,1733611840110,-500.0,0.00019799,2]
[344611279,1733611840119,-514.18,0.00019799,2]
[344611280,1733611840128,-500.0,0.00019799,2]
[344611281,1733611840138,-500.0,0.00019799,2]
[344611282,1733611840148,-117.59264615,0.00019799,2]
[344611283,1733611840164,-382.40735385,0.00019799,2]
[344611284,1733611840176,-500.0,0.00019799,2]
[344611285,1733611840185,-500.0,0.00019799,2]
[344611286,1733611840195,-658.11,0.00019799,2]
[344611287,1733611840204,-500.0,0.00019799,2]
[344611288,1733611840213,-500.0,0.00019799,2]
[344611289,1733611840223,-663.55,0.00019799,2]
[344611290,1733611840233,-500.0,0.00019799,2]
[344611291,1733611840243,-500.0,0.00019799,2]
[344611292,1733611840253,-554.31,0.00019799,2]
[344611293,1733611840262,-500.0,0.00019799,2]
[344611294,1733611840272,-500.0,0.00019799,2]
[344611295,1733611840282,-526.82,0.00019799,2]
[344611296,1733611840292,-500.0,0.00019799,2]
[344611297,1733611840301,-500.0,0.00019799,2]
[344611298,1733611840311,-609.42,0.00019799,2]
[344611299,1733611840321,-500.0,0.00019799,2]
[344611300,1733611840332,-500.0,0.00019799,2]
[344611301,1733611840341,-500.0,0.00019799,2]
[344611302,1733611840354,-500.0,0.00019799,2]
[344611303,1733611840364,-500.0,0.00019799,2]
[344611304,1733611840373,-589.77,0.00019799,2]
[344611306,1733611840382,-500.0,0.00019799,2]
[344611307,1733611840392,-500.0,0.00019799,2]
[344611309,1733611840403,-500.0,0.00019799,2]
[344611310,1733611840413,-500.0,0.00019799,2]
[344611311,1733611840425,-500.0,0.00019799,2]
[344611312,1733611840435,-500.0,0.00019799,2]
[344611313,1733611840445,-609.04,0.00019799,2]
[344611314,1733611840455,-729.4,0.00019799,2]
[344611315,1733611840464,-500.0,0.00019799,2]
[344611316,1733611840475,-547.84,0.00019799,2]
[344611317,1733611840484,-736.17,0.00019799,2]
[344611318,1733611840494,-500.0,0.00019799,2]
[344611319,1733611840503,-500.0,0.00019799,2]
[344611320,1733611840513,-500.0,0.00019799,2]
[344611321,1733611840523,-637.78,0.00019799,2]
[344611322,1733611840533,-500.0,0.00019799,2]
[344611323,1733611840542,-500.0,0.00019799,2]
[344611324,1733611840551,-549.15,0.00019799,2]
[344611325,1733611840560,-500.0,0.00019799,2]
[344611326,1733611840570,-993.94,0.00019799,2]
[344611327,1733611840579,-552.21,0.00019799,2]
[344611328,1733611840589,-563.82,0.00019799,2]
[344611329,1733611840599,-829.37,0.00019799,2]
[344611330,1733611840609,-500.0,0.00019799,2]
[344611331,1733611840619,-500.0,0.00019799,2]
[344611332,1733611840628,-845.86,0.00019799,2]
[344611333,1733611840639,-500.0,0.00019799,2]
[344611334,1733611840649,-500.0,0.00019799,2]
[344611335,1733611840658,-1476.41,0.00019799,2]
[344611336,1733611840669,-745.32,0.00019799,2]
[344611337,1733611840679,-500.0,0.00019799,2]
[344611338,1733611840688,-1035.44,0.00019799,2]
[344611339,1733611840697,-561.29,0.00019799,2]
[344611340,1733611840707,-500.0,0.00019799,2]
[344611341,1733611840716,-625.34,0.00019799,2]
[344611342,1733611840726,-515.19,0.00019799,2]
[344611343,1733611840736,-24041.00618636,0.000198,2]
[344611344,1733611840750,-469.53,0.00019812,2]
[344611345,1733611840759,-500.0,0.00019898,2]
[344611346,1733611840768,-500.0,0.00019898,2]
[344611347,1733611840777,-500.0,0.00019898,2]
[344611348,1733611840786,-500.0,0.00019898,2]
[344611349,1733611840795,-500.0,0.00019898,2]
[344611350,1733611840805,-1101.95,0.00019898,2]
[344611351,1733611840814,-500.0,0.00019898,2]
[344611352,1733611840824,-500.0,0.00019898,2]
[344611353,1733611840834,-411.08,0.00019898,2]
[344611354,1733611840843,-500.0,0.00019898,2]
[344611355,1733611840853,-500.0,0.00019898,2]
[344611356,1733611840862,-500.0,0.00019898,2]
[344611357,1733611840872,-500.0,0.00019898,2]
[344611358,1733611840883,-500.0,0.00019898,2]
[344611359,1733611840892,-1007.69,0.00019898,2]
[344611360,1733611840902,-500.0,0.00019898,2]
[344611361,1733611840911,-500.0,0.00019898,2]
[344611362,1733611840921,-601.05,0.00019898,2]
[344611363,1733611840930,-500.0,0.00019898,2]
[344611364,1733611840940,-500.0,0.00019898,2]
[344611365,1733611840949,-500.0,0.00019898,2]
[344611366,1733611840958,-500.0,0.00019898,2]
[344611367,1733611840968,-500.0,0.00019898,2]
[344611368,1733611840977,-500.0,0.00019898,2]
[344611369,1733611840987,-500.0,0.00019898,2]
[344611370,1733611840996,-575.51,0.00019898,2]
[344611371,1733611841006,-527.56,0.00019898,2]
[344611372,1733611841015,-830.86,0.00019898,2]
[344611373,1733611841024,-688.44,0.00019898,2]
[344611374,1733611841034,-720.04,0.00019898,2]
[344611375,1733611841043,-726.52,0.00019898,2]
[344611376,1733611841053,-856.49,0.00019898,2]
[344611377,1733611841062,-500.0,0.00019898,2]
[344611378,1733611841071,-500.0,0.00019898,2]
[344611379,1733611841080,-5000.0,0.00019898,2]
[344611380,1733611841090,-500.0,0.00019899,2]
[344611381,1733611841100,-672.85,0.00019899,2]
[344611382,1733611841109,-656.25,0.00019899,2]
[344611383,1733611841119,-606.83,0.00019899,2]
[344611384,1733611841128,-518.6,0.00019899,2]
[344611385,1733611841137,-500.0,0.00019899,2]
[344611386,1733611841146,-535.75,0.00019899,2]
[344611387,1733611841155,-610.27,0.00019899,2]
[344611388,1733611841165,-500.0,0.00019899,2]
[344611389,1733611841176,-500.0,0.00019899,2]
[344611390,1733611841185,-620.3,0.00019899,2]
[344611391,1733611841194,-684.38,0.00019899,2]
[344611392,1733611841204,-500.0,0.00019899,2]
[344611393,1733611841213,-658.75,0.00019899,2]
[344611394,1733611841222,-500.0,0.00019899,2]
[344611395,1733611841231,-500.0,0.00019899,2]
[344611396,1733611841241,-500.0,0.00019899,2]
[344611397,1733611841250,-500.0,0.00019899,2]
[344611398,1733611841259,-500.0,0.00019899,2]
[344611399,1733611841268,-500.0,0.00019899,2]
[344611400,1733611841277,-500.0,0.00019899,2]
[344611401,1733611841287,-500.0,0.00019899,2]
[344611402,1733611841296,-500.0,0.00019899,2]
[344611403,1733611841305,-500.0,0.00019899,2]
[344611404,1733611841315,-659.22,0.00019899,2]
[344611405,1733611841324,-500.0,0.00019899,2]
[344611406,1733611841333,-500.0,0.00019899,2]
[344611407,1733611841342,-643.0186895,0.00019899,2]
[344611408,1733611841355,-587.75,0.00019899,2]
[344611409,1733611841366,-500.0,0.00019899,2]
[344611410,1733611841376,-705.7,0.00019899,2]
[344611411,1733611841385,-824.21,0.00019899,2]
[344611412,1733611841396,-500.0,0.00019899,2]
[344611413,1733611841405,-500.0,0.00019899,2]
[344611414,1733611841414,-500.0,0.00019899,2]
[344611415,1733611841425,-220.0,0.000199,2]
[344611416,1733611841436,-500.0,0.000199,2]
[344611417,1733611841445,-7400.0,0.000199,2]
[344611418,1733611841455,-161.09640249,0.00019973,2]
[344611419,1733611841464,-221.67,0.00019997,2]
[344611420,1733611841473,-341.91,0.00019997,2]
[344611421,1733611841483,-863.99,0.00019997,2]
[344611422,1733611841493,-684.06,0.00019997,2]
[344611423,1733611841502,-500.0,0.00019997,2]
[344611424,1733611841511,-500.0,0.00019997,2]
[344611425,1733611841521,-726.97,0.00019997,2]
[344611426,1733611841530,-500.0,0.00019997,2]
[344611427,1733611841540,-500.0,0.00019997,2]
[344611428,1733611841549,-728.02,0.00019997,2]
[344611429,1733611841558,-500.0,0.00019997,2]
[344611430,1733611841567,-500.0,0.00019997,2]
[344611431,1733611841576,-489.21,0.00019997,2]
[344611432,1733611841586,-213.01,0.00019997,2]
[344611433,1733611841595,-682.28,0.00019997,2]
[344611434,1733611841605,-500.0,0.00019997,2]
[344611435,1733611841614,-500.0,0.00019997,2]
[344611436,1733611841624,-500.0,0.00019997,2]
[344611437,1733611841633,-836.23,0.00019997,2]
[344611438,1733611841642,-155.95,0.00019997,2]
[344611439,1733611841651,-500.0,0.00019997,2]
[344611440,1733611841660,-560.98,0.00019997,2]
[344611441,1733611841670,-500.0,0.00019997,2]
[344611442,1733611841680,-506.71,0.00019997,2]
[344611443,1733611841689,-500.0,0.00019997,2]
[344611444,1733611841698,-193.87,0.00019997,2]
[344611445,1733611841707,-500.0,0.00019997,2]
[344611446,1733611841717,-570.28,0.00019997,2]
[344611447,1733611841726,-1200.0,0.00019997,2]
[344611448,1733611841736,-500.0,0.00019998,2]
[344611449,1733611841746,-500.0,0.00019998,2]
[344611450,1733611841755,-672.85,0.00019998,2]
[344611451,1733611841765,-672.85,0.00019998,2]
[344611452,1733611841774,-656.25,0.00019998,2]
[344611453,1733611841784,-656.25,0.00019998,2]
[344611454,1733611841794,-606.83,0.00019998,2]
[344611455,1733611841803,-606.83,0.00019998,2]
[344611456,1733611841813,-500.0,0.00019998,2]
[344611457,1733611841822,-500.0,0.00019998,2]
[344611458,1733611841831,-500.0,0.00019998,2]
[344611459,1733611841841,-500.0,0.00019998,2]
[344611460,1733611841850,-500.0,0.00019998,2]
[344611461,1733611841860,-500.0,0.00019998,2]
[344611462,1733611841870,-500.0,0.00019998,2]
[344611463,1733611841880,-500.0,0.00019998,2]
[344611464,1733611841889,-1101.95,0.00019998,2]
[344611465,1733611841899,-1101.95,0.00019998,2]
[344611466,1733611841908,-500.0,0.00019998,2]
[344611467,1733611841917,-500.0,0.00019998,2]
[344611468,1733611841926,-500.0,0.00019998,2]
[344611469,1733611841936,-500.0,0.00019998,2]
[344611470,1733611841945,-500.0,0.00019998,2]
[344611471,1733611841954,-500.0,0.00019998,2]
[344611472,1733611841964,-273.09,0.00019998,2]
[344611473,1733611841974,-500.0,0.00019998,2]
[344611474,1733611841983,-500.0,0.00019998,2]
[344611475,1733611841993,-500.0,0.00019998,2]
[344611476,1733611842002,-500.0,0.00019998,2]
[344611477,1733611842011,-500.0,0.00019998,2]
[344611478,1733611842020,-500.0,0.00019998,2]
[344611479,1733611842029,-500.0,0.00019998,2]
[344611480,1733611842039,-500.0,0.00019998,2]
[344611481,1733611842048,-452.18,0.00019998,2]
[344611482,1733611842057,-500.0,0.00019998,2]
[344611483,1733611842066,-500.0,0.00019998,2]
[344611484,1733611842076,-1007.69,0.00019998,2]
[344611485,1733611842085,-1007.69,0.00019998,2]
[344611486,1733611842094,-500.0,0.00019998,2]
[344611487,1733611842103,-500.0,0.00019998,2]
[344611488,1733611842112,-500.0,0.00019998,2]
[344611489,1733611842121,-500.0,0.00019998,2]
[344611490,1733611842130,-367.31,0.00019998,2]
[344611491,1733611842139,-500.0,0.00019998,2]
[344611492,1733611842279,-500.0,0.00019998,2]
[344611493,1733611842288,-205.73,0.00019998,2]
[344611494,1733611842298,-160.5,0.00019998,2]
[344611495,1733611842307,-560.49,0.00019998,2]
[344611496,1733611842316,-560.49,0.00019998,2]
[344611497,1733611842325,-500.0,0.00019998,2]
[344611498,1733611842334,-500.0,0.00019998,2]
[344611499,1733611842344,-601.05,0.00019998,2]
[344611500,1733611842356,-601.05,0.00019998,2]
[344611501,1733611842365,-212.16,0.00019998,2]
[344611502,1733611842375,-500.0,0.00019998,2]
[344611503,1733611842385,-500.0,0.00019998,2]
[344611504,1733611842395,-354.13,0.00019998,2]
[344611505,1733611842404,-500.0,0.00019998,2]
[344611506,1733611842414,-518.6,0.00019998,2]
[344611507,1733611842424,-500.0,0.00019998,2]
[344611508,1733611842435,-518.6,0.00019998,2]
[344611509,1733611842444,-329.82,0.00019998,2]
[344611510,1733611842454,-500.0,0.00019998,2]
[344611511,1733611842464,-500.0,0.00019998,2]
[344611512,1733611842474,-164.86,0.00019998,2]
[344611513,1733611842483,-500.0,0.00019998,2]
[344611514,1733611842493,-500.0,0.00019998,2]
[344611515,1733611842504,-500.0,0.00019998,2]
[344611516,1733611842513,-500.0,0.00019998,2]
[344611517,1733611842522,-224.21,0.00019998,2]
[344611518,1733611842532,-764.01,0.00019998,2]
[344611519,1733611842541,-764.01,0.00019998,2]
[344611520,1733611842550,-500.0,0.00019998,2]
[344611521,1733611842560,-500.0,0.00019998,2]
[344611522,1733611842569,-349.12,0.00019998,2]
[344611523,1733611842578,-179.55,0.00019998,2]
[344611524,1733611842587,-421.57,0.00019998,2]
[344611525,1733611842596,-500.0,0.00019998,2]
[344611526,1733611842605,-500.0,0.00019998,2]
[344611527,1733611842615,-280.19,0.00019998,2]
[344611528,1733611842624,-500.0,0.00019998,2]
[344611529,1733611842634,-500.0,0.00019998,2]
[344611530,1733611842643,-500.0,0.00019998,2]
[344611531,1733611842652,-500.0,0.00019998,2]
[344611532,1733611842661,-500.0,0.00019998,2]
[344611533,1733611842672,-500.0,0.00019998,2]
[344611534,1733611842686,-500.0,0.00019998,2]
[344611535,1733611842695,-500.0,0.00019998,2]
[344611536,1733611842704,-500.0,0.00019998,2]
[344611537,1733611842713,-500.0,0.00019998,2]
[344611538,1733611842722,-535.75,0.00019998,2]
[344611539,1733611842731,-535.75,0.00019998,2]
[344611540,1733611842740,-500.0,0.00019998,2]
[344611541,1733611842749,-500.0,0.00019998,2]
[344611542,1733611842758,-534.13,0.00019998,2]
[344611543,1733611842767,-534.13,0.00019998,2]
[344611544,1733611842777,-595.9,0.00019998,2]
[344611545,1733611842786,-595.9,0.00019998,2]
[344611546,1733611842796,-500.0,0.00019998,2]
[344611547,1733611842805,-500.0,0.00019998,2]
[344611548,1733611842814,-500.0,0.00019998,2]
[344611549,1733611842823,-500.0,0.00019998,2]
[344611550,1733611842832,-610.27,0.00019998,2]
[344611551,1733611842841,-610.27,0.00019998,2]
[344611552,1733611842850,-500.0,0.00019998,2]
[344611553,1733611842859,-500.0,0.00019998,2]
[344611554,1733611842869,-323.48,0.00019998,2]
[344611555,1733611842878,-330.35,0.00019998,2]
[344611556,1733611842887,-269.9,0.00019998,2]
[344611557,1733611842896,-575.51,0.00019998,2]
[344611558,1733611842906,-575.51,0.00019998,2]
[344611559,1733611842915,-761.84,0.00019998,2]
[344611560,1733611842926,-761.84,0.00019998,2]
[344611561,1733611842935,-373.22,0.00019998,2]
[344611562,1733611842944,-500.0,0.00019998,2]
[344611563,1733611842954,-500.0,0.00019998,2]
[344611564,1733611842963,-527.56,0.00019998,2]
[344611565,1733611842972,-527.56,0.00019998,2]
[344611566,1733611842981,-282.99,0.00019998,2]
[344611567,1733611842991,-514.18,0.00019998,2]
[344611568,1733611843000,-514.18,0.00019998,2]
[344611569,1733611843008,-331.52,0.00019998,2]
[344611570,1733611843017,-500.0,0.00019998,2]
[344611571,1733611843026,-500.0,0.00019998,2]
[344611572,1733611843036,-393.2,0.00019998,2]
[344611573,1733611843045,-475.77,0.00019998,2]
[344611574,1733611843054,-658.11,0.00019998,2]
[344611575,1733611843063,-464.1,0.00019998,2]
[344611576,1733611843072,-658.11,0.00019998,2]
[344611577,1733611843081,-500.0,0.00019998,2]
[344611578,1733611843090,-500.0,0.00019998,2]
[344611579,1733611843099,-500.0,0.00019998,2]
[344611580,1733611843109,-500.0,0.00019998,2]
[344611581,1733611843118,-500.0,0.00019998,2]
[344611582,1733611843127,-500.0,0.00019998,2]
[344611583,1733611843136,-663.55,0.00019998,2]
[344611584,1733611843145,-663.55,0.00019998,2]
[344611585,1733611843154,-500.0,0.00019998,2]
[344611586,1733611843163,-500.0,0.00019998,2]
[344611587,1733611843175,-500.0,0.00019998,2]
[344611588,1733611843184,-232.19,0.00019998,2]
[344611589,1733611843193,-830.86,0.00019998,2]
[344611590,1733611843202,-830.86,0.00019998,2]
[344611591,1733611843211,-554.31,0.00019998,2]
[344611592,1733611843221,-554.31,0.00019998,2]
[344611593,1733611843231,-688.44,0.00019998,2]
[344611594,1733611843240,-688.44,0.00019998,2]
[344611595,1733611843249,-500.0,0.00019998,2]
[344611596,1733611843258,-410.09,0.00019998,2]
[344611597,1733611843267,-526.82,0.00019998,2]
[344611598,1733611843276,-526.82,0.00019998,2]
[344611599,1733611843285,-500.0,0.00019998,2]
[344611600,1733611843295,-500.0,0.00019998,2]
[344611601,1733611843304,-720.04,0.00019998,2]
[344611602,1733611843313,-720.04,0.00019998,2]
[344611603,1733611843322,-609.42,0.00019998,2]
[344611604,1733611843331,-609.42,0.00019998,2]
[344611605,1733611843340,-726.52,0.00019998,2]
[344611606,1733611843351,-726.52,0.00019998,2]
[344611607,1733611843361,-182.651081,0.00019998,2]
[344611608,1733611843370,-500.0,0.00019998,2]
[344611609,1733611843380,-500.0,0.00019998,2]
[344611610,1733611843391,-500.0,0.00019998,2]
[344611611,1733611843400,-500.0,0.00019998,2]
[344611612,1733611843409,-500.0,0.00019998,2]
[344611613,1733611843419,-500.0,0.00019998,2]
[344611614,1733611843431,-500.0,0.00019998,2]
[344611615,1733611843442,-500.0,0.00019998,2]
[344611616,1733611843451,-589.77,0.00019998,2]
[344611617,1733611843460,-589.77,0.00019998,2]
[344611618,1733611843470,-500.0,0.00019998,2]
[344611619,1733611843480,-500.0,0.00019998,2]
[344611620,1733611843489,-863.99,0.00019998,2]
[344611621,1733611843498,-863.99,0.00019998,2]
[344611622,1733611843508,-863.99,0.00019998,2]
[344611623,1733611843517,-863.99,0.00019998,2]
[344611624,1733611843527,-684.06,0.00019998,2]
[344611625,1733611843536,-684.06,0.00019998,2]
[344611626,1733611843546,-684.06,0.00019998,2]
[344611627,1733611843555,-684.06,0.00019998,2]
[344611628,1733611843565,-500.0,0.00019998,2]
[344611629,1733611843574,-500.0,0.00019998,2]
[344611630,1733611843585,-531.02,0.00019998,2]
[344611631,1733611843594,-500.0,0.00019998,2]
[344611632,1733611843604,-500.0,0.00019998,2]
[344611633,1733611843613,-500.0,0.00019998,2]
[344611634,1733611843623,-500.0,0.00019998,2]
[344611635,1733611843632,-500.0,0.00019998,2]
[344611636,1733611843641,-598.08,0.00019998,2]
[344611637,1733611843651,-726.97,0.00019998,2]
[344611638,1733611843660,-726.97,0.00019998,2]
[344611639,1733611843670,-726.97,0.00019998,2]
[344611640,1733611843679,-729.4,0.00019998,2]
[344611641,1733611843689,-729.4,0.00019998,2]
[344611642,1733611843698,-726.97,0.00019998,2]
[344611643,1733611843707,-500.0,0.00019998,2]
[344611644,1733611843716,-500.0,0.00019998,2]
[344611645,1733611843725,-500.0,0.00019998,2]
[344611646,1733611843734,-500.0,0.00019998,2]
[344611647,1733611843743,-547.84,0.00019998,2]
[344611648,1733611843753,-500.0,0.00019998,2]
[344611649,1733611843762,-547.84,0.00019998,2]
[344611650,1733611843771,-178.48,0.00019998,2]
[344611651,1733611843781,-736.17,0.00019998,2]
[344611652,1733611843790,-736.17,0.00019998,2]
[344611654,1733611843799,-500.0,0.00019998,2]
[344611656,1733611843809,-500.0,0.00019998,2]
[344611657,1733611843818,-423.74,0.00019998,2]
[344611658,1733611843827,-728.02,0.00019998,2]
[344611659,1733611843837,-728.02,0.00019998,2]
[344611660,1733611843847,-620.3,0.00019998,2]
[344611662,1733611843855,-728.02,0.00019998,2]
[344611664,1733611843864,-620.3,0.00019998,2]
[344611666,1733611843874,-728.02,0.00019998,2]
[344611667,1733611843883,-620.3,0.00019998,2]
[344611668,1733611843892,-620.3,0.00019998,2]
[344611669,1733611843901,-500.0,0.00019998,2]
[344611670,1733611843910,-620.3,0.00019998,2]
[344611671,1733611843919,-248.1202868,0.00019998,2]
[344611672,1733611844164,-251.8797132,0.00019998,2]
[344611673,1733611844177,-500.0,0.00019998,2]
[344611674,1733611844186,-500.0,0.00019998,2]
[344611675,1733611844195,-500.0,0.00019998,2]
[344611676,1733611844205,-500.0,0.00019998,2]
[344611677,1733611844214,-637.78,0.00019998,2]
[344611678,1733611844223,-637.78,0.00019998,2]
[344611679,1733611844233,-500.0,0.00019998,2]
[344611680,1733611844242,-611.9,0.00019998,2]
[344611681,1733611844251,-500.0,0.00019998,2]
[344611682,1733611844260,-500.0,0.00019998,2]
[344611683,1733611844270,-500.0,0.00019998,2]
[344611684,1733611844279,-500.0,0.00019998,2]
[344611685,1733611844288,-500.0,0.00019998,2]
[344611686,1733611844298,-500.0,0.00019998,2]
[344611687,1733611844307,-684.38,0.00019998,2]
[344611688,1733611844316,-684.38,0.00019998,2]
[344611689,1733611844326,-684.38,0.00019998,2]
[344611690,1733611844335,-684.38,0.00019998,2]
[344611691,1733611844344,-684.38,0.00019998,2]
[344611692,1733611844356,-500.0,0.00019998,2]
[344611693,1733611844365,-500.0,0.00019998,2]
[344611694,1733611844375,-500.0,0.00019998,2]
[344611695,1733611844384,-549.15,0.00019998,2]
[344611696,1733611844395,-549.15,0.00019998,2]
[344611697,1733611844405,-500.0,0.00019998,2]
[344611698,1733611844414,-308.78,0.00019998,2]
[344611699,1733611844424,-658.75,0.00019998,2]
[344611700,1733611844435,-658.75,0.00019998,2]
[344611701,1733611844445,-658.75,0.00019998,2]
[344611702,1733611844454,-658.75,0.00019998,2]
[344611703,1733611844604,-658.75,0.00019998,2]
[344611704,1733611844614,-500.0,0.00019998,2]
[344611705,1733611844624,-500.0,0.00019998,2]
[344611706,1733611844634,-500.0,0.00019998,2]
[344611707,1733611844643,-500.0,0.00019998,2]
[344611708,1733611844653,-500.0,0.00019998,2]
[344611709,1733611844662,-993.94,0.00019998,2]
[344611710,1733611844672,-634.61,0.00019998,2]
[344611711,1733611844682,-993.94,0.00019998,2]
[344611712,1733611844692,-552.21,0.00019998,2]
[344611713,1733611844701,-552.21,0.00019998,2]
[344611714,1733611844710,-500.0,0.00019998,2]
[344611715,1733611844720,-500.0,0.00019998,2]
[344611716,1733611844729,-500.0,0.00019998,2]
[344611717,1733611844738,-500.0,0.00019998,2]
[344611718,1733611844748,-500.0,0.00019998,2]
[344611719,1733611844757,-500.0,0.00019998,2]
[344611720,1733611844767,-500.0,0.00019998,2]
[344611721,1733611844777,-500.0,0.00019998,2]
[344611722,1733611844787,-210.58,0.00019998,2]
[344611723,1733611844797,-829.37,0.00019998,2]
[344611724,1733611844806,-829.37,0.00019998,2]
[344611725,1733611844816,-500.0,0.00019998,2]
[344611726,1733611844826,-500.0,0.00019998,2]
[344611727,1733611844835,-500.0,0.00019998,2]
[344611728,1733611844845,-500.0,0.00019998,2]
[344611729,1733611844854,-500.0,0.00019998,2]
[344611730,1733611844863,-500.0,0.00019998,2]
[344611731,1733611844873,-500.0,0.00019998,2]
[344611732,1733611844882,-500.0,0.00019998,2]
[344611733,1733611844892,-500.0,0.00019998,2]
[344611734,1733611844902,-415.22,0.00019998,2]
[344611735,1733611844911,-500.0,0.00019998,2]
[344611736,1733611844923,-500.0,0.00019998,2]
[344611738,1733611844933,-682.28,0.00019998,2]
[344611740,1733611844942,-682.28,0.00019998,2]
[344611742,1733611844952,-682.28,0.00019998,2]
[344611743,1733611844962,-682.28,0.00019998,2]
[344611745,1733611844971,-500.0,0.00019998,2]
[344611747,1733611844981,-500.0,0.00019998,2]
[344611749,1733611844991,-155.55,0.00019998,2]
[344611751,1733611845000,-500.0,0.00019998,2]
[344611753,1733611845010,-500.0,0.00019998,2]
[344611755,1733611845019,-500.0,0.00019998,2]
[344611757,1733611845028,-500.0,0.00019998,2]
[344611759,1733611845038,-500.0,0.00019998,2]
[344611761,1733611845047,-845.86,0.00019998,2]
[344611763,1733611845056,-845.86,0.00019998,2]
[344611766,1733611845066,-500.0,0.00019998,2]
[344611768,1733611845075,-500.0,0.00019998,2]
[344611769,1733611845084,-500.0,0.00019998,2]
[344611770,1733611845094,-500.0,0.00019998,2]
[344611771,1733611845104,-500.0,0.00019998,2]
[344611772,1733611845114,-500.0,0.00019998,2]
[344611773,1733611845124,-500.0,0.00019998,2]
[344611774,1733611845133,-395.45,0.00019998,2]
[344611775,1733611845143,-500.0,0.00019998,2]